Cogmind - Beta 11.1 @@@ ROGUE MODE // 2022.12.13 @ 15:48:58 Player: sasha Result: Destroyed by G-34 Mercenary with Small Laser Performance ------------- Evolutions (1) 500 Regions Visited (3) 600 Robots Destroyed (119) 595 Value Destroyed (2288) 2288 Prototype IDs (3) 60 Alien Tech Used (0) 0 Bonus (657) 657 TOTAL SCORE: 4700 Bonus ------- High Alert Combat Kills 635 Follower Combat Kills 35 Friendly Fire -13 Cogmind --------- Core Integrity 0/400 Matter 272/300 Energy 280/280 System Corruption 8% Temperature Critical (522) Movement Treading (320) Ox2 Location -9/Materials Parts ------- > --- POWER (1) -------- Cooled Ion Engine > --- PROPULSION (2) --- Light Treads Light Treads > --- UTILITY (4) ------ Huge Storage Unit Improved Terrain Scanner Medium Armor Plating Hardened Light Armor Plating > --- WEAPON (2) ------- Rocket Launcher > --- INVENTORY (25) --- Cooled Ion Engine Light Treads Light Treads Light Treads Light Treads Combat Airjet Improved Heat Sink High-capacity Battery (250) Light Armor Plating Hardened Light Armor Plating Hardened Light Armor Plating Tractor Beam Rocket Launcher Rocket Launcher Peak State ------------ > --- POWER ------------ Cooled Ion Engine > --- PROPULSION ------- Light Treads Combat Airjet > --- UTILITY ---------- High-capacity Storage Unit Improved Terrain Scanner Targeting Computer > --- WEAPON ----------- High-powered Shotgun High-powered Shotgun > --- INVENTORY -------- Cooled Ion Engine Cooled Ion Engine Light Treads Light Treads Light Treads Light Treads Light Treads Light Treads Light Treads Light Treads Light Treads Improved Heat Sink Huge Storage Unit High-capacity Battery Light Armor Plating Tractor Beam High-powered Shotgun High-powered Shotgun Rocket Launcher Rocket Launcher [Rating: 23] Favorites ----------- Power Cooled Ion Engine Engine Cooled Ion Engine Power Core Light Nuclear Core Propulsion Light Treads Treads Light Treads Hover Unit Combat Airjet Utility High-capacity Storage Unit Device ECM Suite Storage High-capacity Storage Unit Processor Targeting Computer Protection Propulsion Shielding Weapon Shotgun Energy Gun Medium Laser Ballistic Gun Shotgun Launcher Rocket Launcher Build | -11 -10 -10 -9 ------- Run | Scr Mat Min Mat Slots Evolved 2 | . . . 2 Power . | . . . . Propulsion . | . . . . Utility 2 | . . . 2 Weapon . | . . . . Parts Attached 56 | 2 9 2 43 Power 8 | . . . 8 Engine 6 | . . . 6 Core 2 | . . . 2 Reactor . | . . . . Propulsion 15 | . 2 1 12 Treads 14 | . 2 1 11 Leg . | . . . . Wheel . | . . . . Hover 1 | . . . 1 Flight . | . . . . Utility 15 | 1 2 1 11 Device 2 | . 1 . 1 Storage 3 | 1 1 . 1 Processor 2 | . . . 2 Hackware . | . . . . Protection 8 | . . 1 7 Artifact . | . . . . Weapon 18 | 1 5 . 12 Energy Gun 3 | 1 2 . . Energy Cannon . | . . . . Ballistic Gun 12 | . 3 . 9 Ballistic Cannon . | . . . . Launcher 3 | . . . 3 Special Weapon . | . . . . Impact Weapon . | . . . . Slashing Weapon . | . . . . Piercing Weapon . | . . . . Special Melee Weapon . | . . . . Unidentified Prototypes 1 | . . . 1 Parts Lost 18 | . . 1 17 Power . | . . . . Propulsion 5 | . . 1 4 Utility 6 | . . . 6 Weapon 7 | . . . 7 Highest Loss Streak 8 | . . 1 8 To Critical Strikes . | . . . . Average Slot Usage (%) 90 | . 80 84 94 Engine 5 | . . . 9 Core 1 | . . . 1 Treads 24 | . 27 27 21 Device 4 | . 11 4 2 Storage 12 | . 14 14 11 Processor 7 | . . . 12 Protection 9 | . . 9 12 Energy Gun 1 | . 8 . . Ballistic Gun 20 | . 18 28 17 Launcher 2 | . . . 4 Naked Turns . | . . . . Heaviest Build 107 | 7 48 48 107 Greatest Support 40 | 3 40 40 40 Greatest Overweight (x) 4 | 2 2 1 4 Average Overweight (x) 1 | 1 1 1 1 Largest Inventory Capacity 25 | 8 20 20 25 Average Capacity 20 | 7 19 20 20 Most Carried 25 | 7 10 19 25 Average Carried 16 | 5 5 14 20 Final Capacity 25 | 8 20 20 25 Final Carried 19 | 7 10 19 14 Class Distribution -------------------- 100% | Mutant Dominant Class ---------------- Mutant | -10/Materials Mutant | -10/Mines Mutant | -9/Materials Resources | -11 -10 -10 -9 ----------- Run | Scr Mat Min Mat Matter Collected 2664 | 110 250 291 2013 Remotely . | . . . . Salvage Created 3434 | . 204 424 2806 Parts 245 | . 16 28 201 Haulers Intercepted 7 | . 1 . 6 Recyclers Shooed 8 | . . . 8 Parts Field Recycled . | . . . . Retrieved Matter . | . . . . Parts Self-Destructed . | . . . . Prevented . | . . . . Kills | -11 -10 -10 -9 ------- Run | Scr Mat Min Mat Combat Hostiles Destroyed 69 | . 6 10 53 Guns 58 | . 6 10 42 AOE 11 | . . . 11 Classes Destroyed 12 | . 4 2 6 Worker 16 | . . . 16 Builder 16 | . . . 16 Hauler 7 | . 1 . 6 Recycler 9 | . . 1 8 Mechanic 3 | . . . 3 Operator 1 | . . . 1 Watcher 5 | . 2 . 3 Swarmer 16 | . 4 3 9 Grunt 39 | . 2 5 32 Brawler 3 | . . . 3 Duelist 2 | . . . 2 Sentry 9 | . . 2 7 Best Kill Streak 14 | . 3 3 14 Combat Bots Only 9 | . 3 3 9 Max Kills in Single Turn 3 | . 1 2 3 Gunslinging 1 | . . 1 1 Exploded 3 | . . . 3 Melee . | . . . . Uniques/NPCs Destroyed . | . . . . Combat | -11 -10 -10 -9 -------- Run | Scr Mat Min Mat Damage Taken 3624 | . 221 337 3066 Core 524 | . 67 51 406 Absorbed by Shields . | . . . . Redirected to Shielding 101 | . . 7 94 Regen/Repaired (Parts) 96 | . . . 96 Core Remaining (%) 76 | 100 . 52 . Volleys Fired 224 | . 29 18 177 Largest 2 | . 2 2 2 Hottest 100 | . 100 46 66 Shots Fired 403 | . 58 38 307 Gun 367 | . 58 38 271 Cannon . | . . . . Launcher 36 | . . . 36 Special . | . . . . Kinetic 345 | . 36 38 271 Thermal 22 | . 22 . . Explosive 36 | . . . 36 Electromagnetic . | . . . . Robot Hit Streak 16 | . 15 16 11 Robot Miss Streak 9 | . 9 2 5 Penetration Max . | . . . . Secondary Targets 10 | . 1 3 6 Max Gunslinging Chain 1 | . 1 1 1 Shots Hit Robots 303 | . 40 30 233 Core Hits 207 | . 15 21 171 Critical Kills 1 | . . . 1 Critical Parts Destroyed 2 | . . . 2 Critical Strikes 5 | . 2 . 3 Burn 2 | . 2 . . Destroy 3 | . . . 3 Melee Attacks . | . . . . Impact . | . . . . Slashing . | . . . . Piercing . | . . . . Sneak Attacks . | . . . . Combat Hostiles . | . . . . Follow-up Attacks . | . . . . Damage Inflicted 7144 | . 539 459 6146 Guns 4705 | . 539 437 3729 Cannons . | . . . . Explosions 2417 | . . . 2417 Melee . | . . . . Ramming 22 | . . 22 . Kinetic 4489 | . 323 437 3729 Thermal 216 | . 216 . . Explosive 2417 | . . . 2417 Electromagnetic . | . . . . Impact . | . . . . Slashing . | . . . . Piercing . | . . . . Highest Corruption 8 | . 1 1 8 Average Corruption 4 | . 1 1 6 Corruption Purged . | . . . . Corruption Blocked . | . . . . Effects 120 | . 2 14 104 Message Errors 31 | . . 3 28 Matter Fused 33 | . 1 3 29 Heat Flow Errors 12 | . . 1 11 Energy Discharges 15 | . 1 1 13 Data Loss (minor) 13 | . . 3 10 Data Loss (major) 7 | . . 1 6 Misfires 4 | . . 2 2 Weapon Failures 5 | . . . 5 Overload Shots . | . . . . Overflow Damage 88 | . . . 88 Projectiles . | . . . . Explosions 88 | . . . 88 Melee . | . . . . Knockbacks . | . . . . Impact . | . . . . Kinetic . | . . . . Secondary . | . . . . Self-Inflicted Damage 134 | . . . 134 Shots 5 | . . . 5 Rammed 4 | . . 4 . Targets Rammed 5 | . . 5 . Kicked . | . . . . Crushed 1 | . . 1 . Highest Temperature 562 | . 246 121 562 Average Temperature 129 | . 102 72 138 Received Heat Transfer 1281 | . 54 111 1116 Effects 8 | . . . 8 Shutdowns 1 | . . . 1 Interference 3 | . . . 3 Short Circuit 2 | . . . 2 Damage (minor) 2 | . . . 2 Siege Activations . | . . . . Robots Corrupted . | . . . . Combat Hostiles . | . . . . Parts Fried . | . . . . Impact Corruptions . | . . . . Robots Melted . | . . . . Combat Hostiles . | . . . . Parts Melted 2 | . 2 . . Heat Transferred 777 | . 777 . . Parts Sabotaged . | . . . . Parts Stolen . | . . . . Parts Stripped . | . . . . Power Chain Reactions . | . . . . Missiles Intercepted . | . . . . Alert | -11 -10 -10 -9 ------- Run | Scr Mat Min Mat Peak Influence 1485 | . 137 108 1485 Initial 8 | . . 8 . Average 366 | . 37 35 587 Maximum Alert Level 4 | . . . 4 Low Security (%) 57 | 100 100 100 28 Level 1 9 | . . . 15 Level 2 4 | . . . 8 Level 3 23 | . . . 38 Level 4 5 | . . . 9 Level 5 . | . . . . High Security . | . . . . Max Security . | . . . . Sterilizations 1 | . . . 1 Squads Dispatched 12 | . . . 12 Investigation 3 | . . . 3 Extermination . | . . . . Reinforcement 4 | . . . 4 Assault 5 | . . . 5 Garrison . | . . . . Intercept . | . . . . Searches Triggered . | . . . . Construction Impeded 2 | . . . 2 Haulers Reinforced . | . . . . Active Scanning Responses . | . . . . Cargo Convoy Interrupts . | . . . . Stealth | -11 -10 -10 -9 --------- Run | Scr Mat Min Mat Distress Signals 4 | . . . 4 Communications Jammed . | . . . . Distress Signals . | . . . . Times Spotted 104 | . 12 11 81 Peak Tracking Total 11 | . 3 3 11 Tactical Retreats 4 | . 2 . 2 Traps | -11 -10 -10 -9 ------- Run | Scr Mat Min Mat Traps Triggered 4 | . 1 . 3 Indirectly . | . . . . Trap Hack Attempts . | . . . . Triggered . | . . . . Disarmed . | . . . . Reprogrammed . | . . . . Reused . | . . . . Traps Extracted . | . . . . Installed . | . . . . Triggered . | . . . . Machines | -11 -10 -10 -9 ---------- Run | Scr Mat Min Mat Machines Disabled 3 | . . . 3 Max in Single Turn 1 | . . . 1 Machines Sabotaged . | . . . . Garrisons Compromised . | . . . . Overloaded Fab Kills . | . . . . Hacking | -11 -10 -10 -9 --------- Run | Scr Mat Min Mat Machines Accessed 10 | . 3 . 7 Terminals 5 | . 2 . 3 Fabricators . | . . . . Repair Stations 1 | . . . 1 Recycling Units 3 | . 1 . 2 Scanalyzers 1 | . . . 1 Garrison Access . | . . . . Total Hacks 30 | . 5 . 25 Successful 17 | . 3 . 14 Failed 13 | . 2 . 11 Catastrophic 4 | . . . 4 Database Lockouts . | . . . . Manual 19 | . 5 . 14 Terminals 13 | . 3 . 10 Fabricators . | . . . . Repair Stations 2 | . . . 2 Recycling Units 9 | . 2 . 7 Scanalyzers 6 | . . . 6 Garrison Access . | . . . . Terminal Hacks 5 | . 1 . 4 Prototype ID Bank 1 | . . . 1 Branch Access Points 2 | . 1 . 1 Emergency Access Points 1 | . . . 1 Alert Level 1 | . . . 1 Fabricator Hacks . | . . . . Repair Station Hacks 2 | . . . 2 Scan Component 1 | . . . 1 Repair 1 | . . . 1 Recycling Unit Hacks . | . . . . Scanalyzer 6 | . . . 6 Insert Component 3 | . . . 3 Analyze 3 | . . . 3 Garrison Access Hacks . | . . . . Unauthorized Hacks 4 | . 2 . 2 Terminals . | . . . . Fabricators . | . . . . Repair Stations . | . . . . Recycling Units 4 | . 2 . 2 Reject 2 | . 1 . 1 Mask 2 | . 1 . 1 Scanalyzers . | . . . . Garrison Access . | . . . . Data Cores Recovered . | . . . . Used . | . . . . Hacking Detections 5 | . 1 . 4 Full Trace Events 4 | . . . 4 Feedback Events . | . . . . Feedback Blocked . | . . . . Robot Schematics Acquired . | . . . . Robots Built . | . . . . Authchips . | . . . . Time . | . . . . Total Robot Build Rating . | . . . . Part Schematics Acquired 3 | . . . 3 Parts Built . | . . . . Authchips . | . . . . Time . | . . . . Total Part Build Rating . | . . . . Parts Repaired 1 | . . . 1 Time 50 | . . . 50 Parts Recycled . | . . . . Recycled Matter . | . . . . Retrieved Matter . | . . . . Retrieved Components . | . . . . Parts Scanalyzed 3 | . . . 3 Part Schematics Acquired 3 | . . . 3 Parts Damaged . | . . . . Bothacking | -11 -10 -10 -9 ------------ Run | Scr Mat Min Mat Used RIF Installer . | . . . . Robots Hacked . | . . . . Non-combat . | . . . . Combat . | . . . . Robot Hacks Applied . | . . . . Relay Couplers Released . | . . . . Fabnet Peak Effective % . | . . . . Robots Rewired . | . . . . Allies Hacked . | . . . . Hacks Repelled . | . . . . Allies | -11 -10 -10 -9 -------- Run | Scr Mat Min Mat Total Allies 2 | . . 2 . Largest Group 2 | . . 2 . Highest-Rated Group 42 | . . 42 . Highest-Rated Ally 31 | . . 31 . Total Orders . | . . . . Ally Attacks 10 | . . 10 . Total Damage 167 | . . 167 . Kills 1 | . . 1 . Allies Corrupted . | . . . . Allies Melted . | . . . . Intel | -11 -10 -10 -9 ------- Run | Scr Mat Min Mat Robot Analysis Total . | . . . . Derelict Logs Recovered 1 | . . 1 . Drone Launches . | . . . . Drone Recoveries . | . . . . Exploration | -11 -10 -10 -9 ------------- Run | Scr Mat Min Mat Turns Passed 7549 | 47 1131 1846 4525 Spaces Moved 2649 | 30 429 710 1480 Core 47 | 30 17 . . Treads 2600 | . 412 710 1478 Legs . | . . . . Wheels . | . . . . Hover 2 | . . . 2 Flight . | . . . . Fastest Speed 50 | 50 150 240 240 Average Speed 242 | 123 236 240 248 Slowest Speed 380 | 150 240 240 380 Overloaded Moves . | . . . . Propulsion Burnouts . | . . . . Robots Hopped . | . . . . Cave-ins Triggered . | . . . . Exploration Rate (%) 60 | 4 79 97 62 Regions Visited 3 Branch Regions 1 Pre-discovered Areas 1 | . . 1 . Known Exits Taken 1 | . 1 . . Unknown Exits Taken 2 | 1 . 1 . Scrap Searched 1 | . . 1 . Spaces Dug 22 | . . . 22 Terrain Destroyed 179 | . . . 179 Melee . | . . . . Projectile . | . . . . AOE 179 | . . . 179 Terrain Rammed . | . . . . Walls Destroyed . | . . . . Machines Disabled . | . . . . Actions | -11 -10 -10 -9 --------- Run | Scr Mat Min Mat Total 3370 | 39 491 811 2029 Wait 340 | . 5 61 274 Move 2646 | 29 428 709 1480 Hop . | . . . . Pick Up 66 | 8 13 13 32 Fast Attach 3 | 1 . . 2 Attach 31 | 1 7 2 21 Detach 1 | . 1 . . Swap 22 | . 2 . 20 Drop 32 | . 6 3 23 Fire 224 | . 29 18 177 Melee . | . . . . Ram . | . . . . Kick . | . . . . Crush 5 | . . 5 . Escape Stasis . | . . . . Rewire . | . . . . Trap . | . . . . Miscellaneous . | . . . . Route ------- -11/Scrapyard -10/Materials (discovered 4 exits: *Mat x2 / *Min x2) -10/Mines (discovered 3 exits: *Mat x2 / [*Exi]) -9/Materials (discovered 4 exits: Mat / *Min x2 / *Sto) History --------- Turn | Location | Event 13 | -11/Scrapyard | Discovered new exit (range 16) 48 | -11/Scrapyard | Entered Materials 217 | -10/Materials | Discovered new exit (range 16) 314 | -10/Materials | Build established: Mutant 607 | -10/Materials | Discovered new exit (range 9) 782 | -10/Materials | Identified exit to Mines 971 | -10/Materials | Discovered new exit (range 12) 1179 | -10/Materials | Entered Mines 1239 | -10/Mines | Assembled infested the area 1284 | -10/Mines | Learned 8 Materials zone layouts 1672 | -10/Mines | Discovered new exit (range 7) 2281 | -10/Mines | Deemed a non-threat by the Exiles lab entrance 2281 | -10/Mines | Discovered new exit (range 5) 2674 | -10/Mines | Discovered new exit (range 5) 2836 | -10/Mines | Learned location of Storage (-9) 3025 | -10/Mines | Entered Materials 3025 | -9/Materials | Evolved 2 slots: Utility x2 3026 | -9/Materials | Identified exit to Mines 3026 | -9/Materials | Identified exit to Materials 3483 | -9/Materials | Repaired Cmb. Airjet 3538 | -9/Materials | Lost 3 parts (1n2w) 3622 | -9/Materials | Identified exit to Storage 6172 | -9/Materials | Core integrity fell below 50% 7025 | -9/Materials | First assault squad dispatched 7521 | -9/Materials | Core integrity fell below 20% 7531 | -9/Materials | Destroyed 9 combat bots 7533 | -9/Materials | Sterilization system engaged 7533 | -9/Materials | Non-combat units ordered to evacuate 7550 | -9/Materials | Destroyed by G-34 Mercenary with Small Laser Last Messages --------------- system. 07533_ ALERT: All non-combat units evacuate. 07535_ Hpw. Shotgun broken. 07535_ Overheating: Short circuit. 07536_ Lgt. Treads destroyed. 07537_ G-47 Trooper destroyed. 07537_ Broken Hpw. Shotgun destroyed. 07537_ Destroyed Broken Hpw. Shotgun. 07539_ Overheating: System interference. 07539_ Imp. Terrain Scanner temporarily disabled. 07539_ K-01 Serf destroyed. 07542_ Acquired 28 matter. 07545_ Acquired 103 matter. 07546_ System corrupted: Heat flow error (+297). 07547_ Power failure, Cld. Ion Engine shutdown. 07547_ Overheating: Lgt. Treads damaged (-60). 07548_ Overheating: Lgt. Treads damaged (-17). 07548_ Acquired 86 matter. 07549_ Overheating: System interference. 07549_ Rocket Launcher temporarily disabled. Map ----- +----------------------------------------------------+ | #?#????#??#?#???#????????#?##????#????############ | | ##?#?#???????????###?#####?#??????#???# """"" | | #?????????#????#?#???????#????????????# ""T"" | | #????#??##???#??#??#???#?#?#????###?### "" | | #######??????#??##?###########?## ##### "" | | # ##########??#???################# "" | | #?????#?## ! =##### # | | ##########=!%*%* ## ###+#### | | % =%[*! => ! # ## # ^ | | # ##### #####=#####%%* [ ###### ^ | | ## ######+#####+#?### ! ##### """ | | # ##?## #???### ### ## | | # #???# ####### # #### " | | + ##?## ## = ## ##!! | | # #??## ## # #! | | # #?### + # ##! | | ?# ##?## ## # #! ##+###+########## | | # #???# ## # #! # ## | | ?# ##?## ## #= ##!!# ## | | ## #??## ## ######## ### | | # ##########+### # # #?#### #?# | | # #u#####?## [ #?# | | + #r###????# #?# | | # # #?####################?# | | # ############## [ #%### #??# ?# | | # #??#######?### ##@### """"" #??#" """""?# | | ## ##??### #### !%*! =%[# """"" #??#T """""?# | | ## ###### ==!% !=%+ """"" #??#" """"" # | | ##?### """% %==*!=!# #??# """""?+ | | ###?## """ gg ###### """"" #??# """""?# | | ###?## """ % #??#?# """"" #??# """""?# | | #######?#?# %#????# """"" #??# """""?? | | #??????# "" #= |#?#?## #??# ?? | | ###???## S"" %+% #?#??##########??########?? | | ##?#?#?# "" ! [# #??????##?????????????????? | | #???##?# !! # #????#??#?????????????????? | | ##?????########## ###########???????????????? | | #???#??? # + #???????????????? | | ! #?????#?""" !# # ##????????####### | | #?????#""""" # # """ #?????????# ! | | ##???#?""""" #" # """"" #?????????# | | ###???###""""" #%" # """" #?????????# / | | ##??#????# """ #" # """"" #?????????# | | ?#???#???# %+ + """ #?????????# "T" | | #????#???# # # #?????????# ? | | ?????????########### #######################+### | | ??????????????????# "#?# + | | ??????????????????# ""### ###+####### | | ??????????#??????## !!#?# # ## "" | | ?#????????????????# > ""#?# # ## "T | +----------------------------------------------------+ Best States ------------- Heat Dissipation 28 Energy Generation 14 Energy Capacity 280 Matter Stores 300 Matter Capacity 300 Sight Range 18 Terrain Scan Range 16 Terrain Scan Density 10 ECM Strength 1 Armor Coverage 375 Propulsion Shielding 33 Weapon Shielding 33 Evasion (%) 50 Targeting Accuracy 5 Recoil Reduction 2 Item Schematics ----------------- Huge Storage Unit | -9/Materials | Scanalyzed Cmb. Airjet | -9/Materials | Scanalyzed Med. Armor Plating | -9/Materials | Scanalyzed Robot Schematics ------------------ None Fabricated ------------ Nothing Alien Tech Used ----------------- None Achievements -------------- None Challenges ------------ None Game ------ Seed NeutrinoLinearNetwork Manual? 0 Play Time 00:46:13 Cumulative 42.7 hours Start 2022.12.13 @ 14:12:30 End 2022.12.13 @ 15:48:58 Sessions 1 Manual Loads 0 Difficulty Rogue Special Mode None Game No. 54 Rogue 54 Adventurer 0 Explorer 0 Win Type - Total 0 Types 0/0/0/0/0/0/0/0/0 Lore% 28 Gallery% 35 Achievement% 30 Wizard Run 0 Options --------- ASCII 0 Keyboard 0 Movement Mouse Keybinds 0 Fullscreen 2 Font 24/Smallcaps Map View 76x50 Tactical HUD 1 Map Filters NONE Filters NONE Steam 1 RUN: b1b4e264-a0a2-4802-ab9c-0140e3fe7cc2